Cogmind - Beta 13 X1 @@@ ROGUE MODE // 2023.07.13 @ 21:01:46 Player: WayneKnight Result: Self-destructed Performance ------------- Evolutions (3) 1500 Regions Visited (8) 1600 Robots Destroyed (118) 590 Value Destroyed (3506) 3506 Prototype IDs (5) 100 Alien Tech Used (0) 0 Bonus (109) 109 TOTAL SCORE: 7405 Bonus ------- High Alert Combat Kills 17 Follower Combat Kills 211 Friendly Fire -119 Cogmind --------- Core Integrity 584/700 Matter 46/300 Energy 89/100 System Corruption 3% Temperature Cool (0) Movement Hovering (66) Location -7/Factory Parts ------- > --- POWER (1) -------- (None) > --- PROPULSION (4) --- Combat Airjet Antigrav System > --- UTILITY (6) ------ Large Storage Unit Trap Scanner Improved Sensor Array Improved Signal Interpreter Target Analyzer > --- WEAPON (2) ------- (None) > --- INVENTORY (15) --- Airjet Gravmag System Medium Storage Unit Advanced ECM Suite Improved Medium Armor Plating Medium Reactive Plating Hacking Suite Heavy Assault Rifle Minigun Gauss Rifle Gauss Cannon Power Maul Greatsword Peak State ------------ > --- POWER ------------ Micro Fission Core > --- PROPULSION ------- Gravmag System Gravmag System Combat Airjet Antigrav System > --- UTILITY ---------- Large Storage Unit Trap Scanner Improved Signal Interpreter Armor Integrity Analyzer Advanced ECM Suite Improved Medium Armor Plating > --- WEAPON ----------- Greatsword > --- INVENTORY -------- Light Treads Light Treads Medium Storage Unit Improved Sensor Array Improved Medium Armor Plating Medium Reactive Plating Medium Reactive Plating Heavy Assault Rifle Minigun Gauss Rifle Gauss Cannon Improved Grenade Launcher Power Maul Greatsword [Rating: 56] Favorites ----------- Power Heavy Ion Engine Engine Heavy Ion Engine Power Core Micro Nuclear Core Propulsion Light Treads Treads Light Treads Leg Aluminum Leg Wheel Armored Wheel Hover Unit Gravmag System Utility Large Storage Unit Device Thief Drone Bay Storage Large Storage Unit Processor Melee Analysis Suite Hackware Hacking Suite Protection Light Armor Plating Weapon Heavy Assault Rifle Energy Gun Medium Laser Ballistic Gun Heavy Assault Rifle Launcher Improved Grenade Launcher Impact Weapon Power Maul Slashing Weapon Greatsword Build | -11 -10 -10 -9 -9 -9 -8 -8 -7 ------- Run | Jun Mat Min Mat Min Exi Min Mat Fac Slots Evolved 6 | . . . 2 . . . 2 2 Power . | . . . . . . . . . Propulsion 2 | . . . . . . . 1 1 Utility 4 | . . . 2 . . . 1 1 Weapon . | . . . . . . . . . Parts Attached 163 | 4 5 12 38 11 . 11 51 31 Power 6 | . . 1 1 1 . . 2 1 Engine 4 | . . 1 1 1 . . 1 . Core 2 | . . . . . . . 1 1 Reactor . | . . . . . . . . . Propulsion 66 | 2 4 7 19 3 . 7 18 6 Treads 36 | 1 2 4 10 2 . 4 12 1 Leg . | . . . . . . . . . Wheel 26 | 1 2 3 9 1 . 3 6 1 Hover 4 | . . . . . . . . 4 Flight . | . . . . . . . . . Utility 56 | 1 1 1 11 3 . 1 16 22 Device 18 | 1 . . 3 1 . . 2 11 Storage 4 | . 1 . 1 1 . . 1 . Processor 5 | . . . . . . . 2 3 Hackware 1 | . . . . . . . . 1 Protection 28 | . . 1 7 1 . 1 11 7 Artifact . | . . . . . . . . . Weapon 35 | 1 . 3 7 4 . 3 15 2 Energy Gun 4 | 1 . . 2 1 . . . . Energy Cannon . | . . . . . . . . . Ballistic Gun 24 | . . 3 5 2 . 2 12 . Ballistic Cannon . | . . . . . . . . . Launcher 5 | . . . . 1 . . 3 1 Special Weapon . | . . . . . . . . . Impact Weapon 1 | . . . . . . 1 . . Slashing Weapon 1 | . . . . . . . . 1 Piercing Weapon . | . . . . . . . . . Special Melee Weapon . | . . . . . . . . . Unidentified Prototypes 3 | . . . 3 . . . . . Parts Lost 22 | . . . . 6 . . 10 6 Power 5 | . . . . 1 . . 2 2 Propulsion 6 | . . . . 1 . . 3 2 Utility 7 | . . . . 3 . . 3 1 Weapon 4 | . . . . 1 . . 2 1 Highest Loss Streak 6 | . . . . 6 . . 3 4 To Critical Strikes 1 | . . . . 1 . . . . Average Slot Usage (%) 96 | . 100 99 99 86 88 88 99 90 Engine 6 | . 14 14 11 10 11 11 . 1 Core 3 | . . . . . . . 8 2 Treads 19 | . 14 15 17 12 11 15 26 14 Wheel 4 | . 13 12 4 9 11 6 . 2 Device 7 | . 14 6 8 3 . . 8 13 Storage 12 | . 14 14 13 18 22 12 11 7 Processor 4 | . . . . . . . 10 9 Protection 14 | . . 7 21 9 11 20 13 12 Energy Gun 2 | . 14 6 . 9 11 2 . . Ballistic Gun 17 | . 14 21 21 12 11 19 17 9 Naked Turns . | . . . . . . . . . Heaviest Build 61 | 14 29 35 61 56 56 56 60 59 Greatest Support 80 | 10 40 40 43 44 12 44 67 80 Greatest Overweight (x) 6 | 1 2 3 6 4 4 4 4 1 Average Overweight (x) 1 | 1 1 2 3 3 4 3 . . Largest Inventory Capacity 15 | 8 15 15 15 15 15 15 15 15 Average Capacity 14 | 8 14 15 15 15 15 15 15 15 Most Carried 15 | 6 12 15 15 15 15 15 15 15 Average Carried 14 | 5 8 14 14 14 15 15 14 14 Final Capacity 15 | 8 15 15 15 15 15 15 15 15 Final Carried 15 | 5 12 15 15 15 15 15 14 14 Class Distribution -------------------- 55% | Mutant 39% | Scavenger-Mutant Dominant Class ---------------- Mutant | -10/Materials Scavenger-Mutant | -10/Mines Scavenger-Mutant | -9/Materials Mutant | -9/Mines Mutant | -9/Exiles Mutant | -8/Mines Mutant | -8/Materials Scavenger-Skirmisher | -7/Factory Resources | -11 -10 -10 -9 -9 -9 -8 -8 -7 ----------- Run | Jun Mat Min Mat Min Exi Min Mat Fac Matter Collected 3823 | 210 112 183 610 367 . 420 1577 344 Remotely . | . . . . . . . . . Salvage Created 4558 | 77 232 128 991 331 . 541 1822 436 Parts 254 | 4 16 7 62 12 . 14 104 35 Haulers Intercepted 4 | . 1 . 3 . . . . . Recyclers Shooed 4 | 1 1 1 . . . . . 1 Parts Field Recycled . | . . . . . . . . . Retrieved Matter . | . . . . . . . . . Parts Self-Destructed . | . . . . . . . . . Prevented . | . . . . . . . . . Kills | -11 -10 -10 -9 -9 -9 -8 -8 -7 ------- Run | Jun Mat Min Mat Min Exi Min Mat Fac Combat Hostiles Destroyed 97 | . 6 3 20 15 . 10 35 8 Melee 2 | . . . . . . . . 2 Guns 80 | . 6 3 20 8 . 9 30 4 AOE 14 | . . . . 7 . . 5 2 Classes Destroyed 15 | 2 5 . 1 3 . 2 1 1 Worker 6 | . 1 . . 1 . 1 2 1 Builder 4 | . . . . 2 . 1 1 . Tunneler 6 | 1 . 1 . . . 1 3 . Hauler 4 | . 1 . 3 . . . . . Recycler 5 | 1 . . . 1 . 1 1 1 Operator 1 | . . . . . . . 1 . Watcher 8 | . 1 . 1 . . . 5 1 Swarmer 18 | . 4 . 4 . . 3 5 2 Grunt 39 | . 2 3 8 1 . 5 20 . Brawler 2 | . . . . . . 1 1 . Sentry 17 | . . . 8 . . . 8 1 Demolisher 1 | . . . . 1 . . . . Hunter 2 | . . . . . . 1 1 . Programmer 5 | . . . . . . . . 5 Assembled 14 | . . . . 14 . . . . Best Kill Streak 9 | 2 4 2 4 9 . 6 7 3 Combat Bots Only 8 | . 4 2 4 8 . 6 6 2 Max Kills in Single Turn 4 | 1 1 1 2 4 . 1 2 1 Gunslinging 1 | . . . 1 . . . . . Exploded 4 | . . . . 4 . . 2 1 Melee 1 | . . . . . . . . 1 Uniques/NPCs Destroyed . | . . . . . . . . . Combat | -11 -10 -10 -9 -9 -9 -8 -8 -7 -------- Run | Jun Mat Min Mat Min Exi Min Mat Fac Damage Taken 5769 | . 109 214 553 1166 . 962 1809 956 Core 765 | . 34 35 99 143 . 54 284 116 Absorbed by Shields . | . . . . . . . . . Redirected to Shielding 183 | . . . 8 22 . 38 115 . Ignored by Resistances 33 | . . . . . . . 33 . Regen/Repaired (Parts) 246 | . . . 212 . . . 34 . Core Remaining (%) 61 | 100 . 72 . . . 26 48 . Volleys Fired 359 | 5 27 17 49 36 . 39 151 35 Largest 2 | 2 2 2 2 2 . 2 2 2 Hottest 73 | 70 70 73 46 68 . 68 53 48 Shots Fired 706 | 10 53 34 98 72 . 78 296 65 Gun 691 | 10 53 34 98 67 . 78 291 60 Cannon . | . . . . . . . . . Launcher 15 | . . . . 5 . . 5 5 Special . | . . . . . . . . . Kinetic 625 | 5 27 22 98 52 . 70 291 60 Thermal 43 | 5 26 12 . . . . . . Explosive 15 | . . . . 5 . . 5 5 Electromagnetic 23 | . . . . 15 . 8 . . Robot Hit Streak 24 | 3 12 24 12 7 . 9 15 10 Robot Miss Streak 10 | 1 3 1 3 7 . 3 10 4 Penetration Max 1 | . . . . . . . 1 . Secondary Targets 6 | . . . 2 2 . 1 1 . Max Gunslinging Chain 1 | . . . 1 1 . 1 1 . Shots Hit Robots 477 | 7 34 28 70 44 . 63 183 48 Core Hits 245 | 3 15 11 32 42 . 30 91 21 Critical Kills 1 | . . . . . . 1 . . Critical Parts Destroyed 3 | . . . . 1 . 1 1 . Critical Strikes 6 | . 1 . . 1 . 3 1 . Burn 1 | . 1 . . . . . . . Destroy 4 | . . . . 1 . 2 1 . Smash 1 | . . . . . . 1 . . Melee Attacks 21 | . . . . . . 4 . 17 Impact 4 | . . . . . . 4 . . Slashing 17 | . . . . . . . . 17 Piercing . | . . . . . . . . . Sneak Attacks . | . . . . . . . . . Combat Hostiles . | . . . . . . . . . Follow-up Attacks . | . . . . . . . . . Damage Inflicted 9302 | 66 385 377 1109 1055 . 1040 3928 1342 Guns 7395 | 66 385 360 1109 720 . 863 3216 676 Cannons . | . . . . . . . . . Explosions 1257 | . . . . 335 . 41 701 180 Melee 622 | . . . . . . 136 . 486 Ramming 28 | . . 17 . . . . 11 . Kinetic 6733 | 41 140 228 1109 571 . 752 3216 676 Thermal 443 | 25 245 132 . . . 41 . . Explosive 1216 | . . . . 335 . . 701 180 Electromagnetic 260 | . . . . 149 . 111 . . Impact 136 | . . . . . . 136 . . Slashing 486 | . . . . . . . . 486 Piercing . | . . . . . . . . . Highest Corruption 4 | . . . . . . . . 4 Average Corruption 2 | . . . . . . . . 2 Corruption Purged 5 | . . . . . . . . 5 Corruption Blocked . | . . . . . . . . . Effects 13 | . . . . . . . . 13 Message Errors 1 | . . . . . . . . 1 Matter Fused 6 | . . . . . . . . 6 Heat Flow Errors 4 | . . . . . . . . 4 Energy Discharges 1 | . . . . . . . . 1 Alerts 1 | . . . . . . . . 1 Overload Shots . | . . . . . . . . . Overflow Damage 126 | . . . . . . 4 4 118 Projectiles . | . . . . . . . . . Explosions 18 | . . . . . . . 4 14 Melee 108 | . . . . . . 4 . 104 Knockbacks . | . . . . . . . . . Impact . | . . . . . . . . . Kinetic . | . . . . . . . . . Secondary . | . . . . . . . . . Self-Inflicted Damage 123 | . . 4 . 42 . 35 42 . Shots 3 | . . . . 1 . 1 1 . Rammed 5 | . . 3 . . . . 2 . Targets Rammed 6 | . . 3 . . . . 3 . Kicked . | . . . . . . . . . Crushed 1 | . . . . . . . 1 . Highest Temperature 296 | 90 100 153 44 200 . 296 194 274 Average Temperature 53 | 52 38 70 15 78 . 96 24 95 Received Heat Transfer 1939 | . 30 117 180 340 . 324 936 12 Effects 3 | . . . . . . 3 . . Energy Bleed 1 | . . . . . . 1 . . Interference 2 | . . . . . . 2 . . Siege Activations . | . . . . . . . . . Robots Corrupted . | . . . . . . . . . Combat Hostiles . | . . . . . . . . . Parts Fried 1 | . . . . . . 1 . . Impact Corruptions 1 | . . . . . . 1 . . Robots Melted . | . . . . . . . . . Combat Hostiles . | . . . . . . . . . Parts Melted 1 | . . 1 . . . . . . Heat Transferred 1321 | 74 777 370 . . . 100 . . Parts Sabotaged . | . . . . . . . . . Parts Stolen . | . . . . . . . . . Parts Stripped . | . . . . . . . . . Power Chain Reactions 1 | . . . . . . 1 . . Missiles Intercepted . | . . . . . . . . . Alert | -11 -10 -10 -9 -9 -9 -8 -8 -7 ------- Run | Jun Mat Min Mat Min Exi Min Mat Fac Peak Influence 494 | 10 163 208 336 56 . 128 494 313 Initial 223 | . 6 36 . 19 . . . 223 Average 108 | 5 52 48 85 5 . 58 161 152 Maximum Alert Level 2 | . . 1 1 . . . 2 1 Low Security (%) 81 | 100 100 99 94 100 . 100 63 69 Level 1 16 | . . . 5 . . . 32 30 Level 2 1 | . . . . . . . 4 . Level 3 . | . . . . . . . . . Level 4 . | . . . . . . . . . Level 5 . | . . . . . . . . . High Security . | . . . . . . . . . Max Security . | . . . . . . . . . Squads Dispatched 22 | . 3 1 5 . . 1 5 7 Investigation 4 | . 1 . 2 . . . 1 . Extermination 4 | . . . . . . . . 4 Reinforcement 13 | . 2 . 3 . . 1 4 3 Assault 1 | . . 1 . . . . . . Garrison . | . . . . . . . . . Intercept . | . . . . . . . . . Searches Triggered . | . . . . . . . . . Construction Impeded 1 | . . . . . . 1 . . Haulers Reinforced . | . . . . . . . . . Active Scanning Responses . | . . . . . . . . . Cargo Convoy Interrupts . | . . . . . . . . . Stealth | -11 -10 -10 -9 -9 -9 -8 -8 -7 --------- Run | Jun Mat Min Mat Min Exi Min Mat Fac Distress Signals 12 | . 1 . 1 . . . 9 1 Communications Jammed . | . . . . . . . . . Distress Signals . | . . . . . . . . . Times Spotted 180 | . 12 11 28 24 . 13 75 17 Peak Tracking Total 7 | . 6 6 4 7 . 6 5 5 Tactical Retreats 14 | . 1 . 6 2 . . 3 2 Traps | -11 -10 -10 -9 -9 -9 -8 -8 -7 ------- Run | Jun Mat Min Mat Min Exi Min Mat Fac Traps Triggered 1 | . 1 . . . . . . . Indirectly . | . . . . . . . . . Trap Hack Attempts . | . . . . . . . . . Triggered . | . . . . . . . . . Disarmed . | . . . . . . . . . Reprogrammed . | . . . . . . . . . Reused . | . . . . . . . . . Traps Extracted . | . . . . . . . . . Installed . | . . . . . . . . . Triggered . | . . . . . . . . . Machines | -11 -10 -10 -9 -9 -9 -8 -8 -7 ---------- Run | Jun Mat Min Mat Min Exi Min Mat Fac Machines Disabled 3 | . . . . . . . 3 . Max in Single Turn 2 | . . . . . . . 2 . Garrison Access 2 | . . . . . . . 1 1 Machines Repaired . | . . . . . . . . . Machines Sabotaged . | . . . . . . . . . Overloaded Fab Kills . | . . . . . . . . . Hacking | -11 -10 -10 -9 -9 -9 -8 -8 -7 --------- Run | Jun Mat Min Mat Min Exi Min Mat Fac Machines Accessed 33 | . 5 2 8 1 1 . 11 5 Terminals 22 | . 5 1 6 . . . 8 2 Fabricators . | . . . . . . . . . Repair Stations 2 | . . . 1 . . . 1 . Recycling Units 2 | . . . . . . . . 2 Scanalyzers 2 | . . . 1 . . . 1 . Garrison Access 2 | . . . . . . . 1 1 Total Hacks 95 | . 17 3 28 1 1 . 37 8 Successful 51 | . 8 2 16 1 1 . 18 5 Failed 42 | . 8 . 12 . . . 19 3 Catastrophic 7 | . . . 1 . . . 5 1 Database Lockouts 2 | . 1 1 . . . . . . Manual 45 | . 13 2 7 . . . 21 2 Terminals 64 | . 17 2 16 . . . 25 4 Fabricators . | . . . . . . . . . Repair Stations 11 | . . . 8 . . . 3 . Recycling Units 3 | . . . . . . . . 3 Scanalyzers 10 | . . . 4 . . . 6 . Garrison Access 4 | . . . . . . . 3 1 Terminal Hacks 22 | . 5 2 6 1 1 . 7 . Record 1 | . . . . . 1 . . . Robot Analysis 7 | . 2 1 1 . . . 3 . Prototype ID Bank 1 | . . . 1 . . . . . Open Door 2 | . . 1 . 1 . . . . Alert Level 3 | . . . 2 . . . 1 . Unreport Threat 3 | . . . 1 . . . 2 . Locate Traps 3 | . 1 . 1 . . . 1 . Recall Investigation 1 | . 1 . . . . . . . Recall Reinforcements 1 | . 1 . . . . . . . Fabricator Hacks . | . . . . . . . . . Repair Station Hacks 8 | . . . 6 . . . 2 . Scan Component 4 | . . . 3 . . . 1 . Repair 4 | . . . 3 . . . 1 . Recycling Unit Hacks 2 | . . . . . . . . 2 Report Inventory 2 | . . . . . . . . 2 Scanalyzer 9 | . . . 4 . . . 5 . Insert Component 4 | . . . 2 . . . 2 . Analyze 5 | . . . 2 . . . 3 . Garrison Access Hacks 2 | . . . . . . . 1 1 Seal Access 2 | . . . . . . . 1 1 Unauthorized Hacks 8 | . 3 . . . . . 3 2 Terminals 8 | . 3 . . . . . 3 2 Track 1 | . 1 . . . . . . . Botnet 7 | . 2 . . . . . 3 2 Fabricators . | . . . . . . . . . Repair Stations . | . . . . . . . . . Recycling Units . | . . . . . . . . . Scanalyzers . | . . . . . . . . . Garrison Access . | . . . . . . . . . Data Cores Recovered . | . . . . . . . . . Used . | . . . . . . . . . Hacking Detections 25 | . 5 . 7 . . . 10 3 Full Trace Events . | . . . . . . . . . Feedback Events . | . . . . . . . . . Feedback Blocked . | . . . . . . . . . Robot Schematics Acquired . | . . . . . . . . . Robots Built . | . . . . . . . . . Authchips . | . . . . . . . . . Time . | . . . . . . . . . Total Robot Build Rating . | . . . . . . . . . Part Schematics Acquired 4 | . . . 2 . . . 2 . Parts Built . | . . . . . . . . . Authchips . | . . . . . . . . . Time . | . . . . . . . . . Total Part Build Rating . | . . . . . . . . . Parts Repaired 4 | . . . 3 . . . 1 . Time 100 | . . . 84 . . . 16 . Parts Recycled . | . . . . . . . . . Recycled Matter . | . . . . . . . . . Retrieved Matter . | . . . . . . . . . Retrieved Components . | . . . . . . . . . Parts Scanalyzed 4 | . . . 2 . . . 2 . Part Schematics Acquired 4 | . . . 2 . . . 2 . Parts Damaged . | . . . . . . . . . Bothacking | -11 -10 -10 -9 -9 -9 -8 -8 -7 ------------ Run | Jun Mat Min Mat Min Exi Min Mat Fac Used RIF Installer . | . . . . . . . . . Robots Hacked . | . . . . . . . . . Non-combat . | . . . . . . . . . Combat . | . . . . . . . . . Robot Hacks Applied . | . . . . . . . . . Relay Couplers Released 3 | . . . . . . . . 3 Programmers 3 | . . . . . . . . 3 Fabnet Peak Effective % . | . . . . . . . . . Robots Rewired . | . . . . . . . . . Allies Hacked . | . . . . . . . . . Hacks Repelled . | . . . . . . . . . Allies | -11 -10 -10 -9 -9 -9 -8 -8 -7 -------- Run | Jun Mat Min Mat Min Exi Min Mat Fac Total Allies 6 | . . 1 . 5 . . . . Largest Group 3 | . . 1 . 3 2 . . . Highest-Rated Group 40 | . . 31 . 40 38 . . . Highest-Rated Ally 31 | . . 31 . 31 31 . . . Total Orders 21 | . . . 13 . . . 8 . EXPLORE 21 | . . . 13 . . . 8 . Ally Attacks 99 | . . 19 52 1 . . 27 . Total Damage 574 | . . 318 176 . . . 80 . Kills 10 | . . 7 1 . . . 2 . Allies Corrupted . | . . . . . . . . . Allies Melted . | . . . . . . . . . Intel | -11 -10 -10 -9 -9 -9 -8 -8 -7 ------- Run | Jun Mat Min Mat Min Exi Min Mat Fac Robot Analysis Total 7 | . 2 1 1 . . . 3 . Derelict Logs Recovered 4 | . . 2 . 2 . . . . Drone Launches 21 | . . . 13 . . . 8 . Drone Recoveries 18 | . . . 12 . . . 6 . Exploration | -11 -10 -10 -9 -9 -9 -8 -8 -7 ------------- Run | Jun Mat Min Mat Min Exi Min Mat Fac Turns Passed 15575 | 26 1005 993 3538 1017 272 1376 6023 1325 Spaces Moved 5870 | 6 510 703 897 503 182 524 1550 995 Core . | . . . . . . . . . Treads 1907 | . 3 8 169 4 . 137 1357 229 Legs . | . . . . . . . . . Wheels 3356 | 6 507 695 728 499 182 387 193 159 Hover 607 | . . . . . . . . 607 Flight . | . . . . . . . . . Fastest Speed 53 | 95 95 110 125 120 150 150 150 53 Average Speed 136 | 95 110 119 157 139 150 169 156 92 Slowest Speed 240 | 95 160 240 240 150 150 225 160 240 Overloaded Moves . | . . . . . . . . . Propulsion Burnouts . | . . . . . . . . . Robots Hopped . | . . . . . . . . . Cave-ins Triggered . | . . . . . . . . . Exploration Rate (%) 72 | 2 77 99 98 91 56 99 98 32 Regions Visited 8 Branch Regions 4 Pre-discovered Areas 1 | . . . . . 1 . . . Known Exits Taken 1 | . . . . . . . 1 . Unknown Exits Taken 7 | 1 1 1 1 1 1 1 . . Scrap Searched 6 | . . 1 . 3 . 2 . . Spaces Dug 6 | . . . . . . . . 6 Terrain Destroyed 136 | . . . . 52 . 8 60 16 Melee 6 | . . . . . . . . 6 Projectile 2 | . . . . . . . 2 . AOE 128 | . . . . 52 . 8 58 10 Terrain Rammed . | . . . . . . . . . Walls Destroyed . | . . . . . . . . . Machines Disabled . | . . . . . . . . . Actions | -11 -10 -10 -9 -9 -9 -8 -8 -7 --------- Run | Jun Mat Min Mat Min Exi Min Mat Fac Total 12698 | 15 903 819 2932 749 181 921 4874 1304 Wait 6127 | . 343 71 1907 186 . 343 3084 193 Move 5862 | 5 509 702 896 502 181 523 1549 995 Hop . | . . . . . . . . . Pick Up 64 | . 7 6 18 8 . . 13 12 Fast Attach 25 | 1 . 2 4 2 . 1 8 7 Attach 27 | . . . 2 4 . . 12 9 Detach 12 | . . 1 . . . . 4 7 Swap 111 | 3 5 10 32 5 . 10 31 15 Drop 72 | 1 1 7 24 6 . 1 19 13 Fire 359 | 5 27 17 49 36 . 39 151 35 Melee 21 | . . . . . . 4 . 17 Ram 1 | . . 1 . . . . . . Kick . | . . . . . . . . . Crush 5 | . . 2 . . . . 3 . Escape Stasis . | . . . . . . . . . Rewire 12 | . 11 . . . . . . 1 Trap . | . . . . . . . . . Miscellaneous . | . . . . . . . . . Route ------- -11/Junkyard -10/Materials (discovered 5 exits: *Mat x3 / *Min x2) -10/Mines (discovered 3 exits: *Mat x2 / *Sub) -9/Materials (discovered 6 exits: *Mat x3 / *Min x2 / [*Sto]) -9/Mines (discovered 4 exits: *Mat x2 / *Exi / [*Zio]) -9/Exiles -8/Mines (discovered 2 exits: *Mat x2) -8/Materials (discovered 3 exits: *Fac x3) -7/Factory (discovered 2 exits: *Fac / *Low) History --------- Turn | Location | Event 21 | -11/Junkyard | Discovered new exit (range 3) 27 | -11/Junkyard | Entered Materials 304 | -10/Materials | Build established: Mutant 535 | -10/Materials | Discovered new exit (range 16) 714 | -10/Materials | Central database locked down 736 | -10/Materials | Discovered new exit (range 4) 851 | -10/Materials | Discovered new exit (range 6) 993 | -10/Materials | Discovered new exit (range 4) 1015 | -10/Materials | Discovered new exit (range 16) 1032 | -10/Materials | Entered Mines 1040 | -10/Mines | Met a Derelict bent on vengeance 1053 | -10/Mines | Central database locked down 1070 | -10/Mines | Discovered new exit (range 5) 1158 | -10/Mines | Learned Materials garrison access intel 1350 | -10/Mines | Met a Derelict testing a Signal Generator 1370 | -10/Mines | Identified exit to Subcaves 1584 | -10/Mines | Found the Drone Emporium 1592 | -10/Mines | Found Prototype Device 1638 | -10/Mines | Discovered new exit (range 8) 1749 | -10/Mines | Build established: Scavenger-Mutant 2025 | -10/Mines | Entered Materials 2025 | -9/Materials | Evolved 2 slots: Utility x2 2026 | -9/Materials | Identified Thief Drone Bay 2293 | -9/Materials | Discovered new exit (range 78) 2305 | -9/Materials | Discovered new exit (range 36) 2787 | -9/Materials | Discovered new exit (range 3) 2904 | -9/Materials | Discovered new exit (range 14) 3181 | -9/Materials | Discovered new exit (range 28) 4427 | -9/Materials | Discovered new exit (range 9) 5230 | -9/Materials | Build established: Mutant 5449 | -9/Materials | Repaired Lgt. Armor Plating 5482 | -9/Materials | Repaired Hvy. Assault Rifle 5510 | -9/Materials | Repaired Lgt. Armor Plating 5563 | -9/Materials | Entered Mines 5565 | -9/Mines | Discovered new exit (range 12) 5614 | -9/Mines | Assisted by bots powering up and referring to "LRC-V3" 5652 | -9/Mines | Received a Rocket Launcher from a helpful Derelict 5664 | -9/Mines | Learned Materials security intel 5672 | -9/Mines | Assembled infested the area 5675 | -9/Mines | Discovered new exit (range 9) 5732 | -9/Mines | Destroyed 8 combat bots 5761 | -9/Mines | Core integrity fell below 50% 5788 | -9/Mines | Lost 6 parts (1p1n3u1w) 5976 | -9/Mines | A Derelict revealed a hidden shortcut to a safe place 6001 | -9/Mines | Met a Derelict who couldn't figure out how to use a Trap Extractor 6265 | -9/Mines | Learned location of 1 exit from Lower Caves 6406 | -9/Mines | Deemed a non-threat by the Exiles lab entrance 6572 | -9/Mines | Discovered new exit (range 5) 6580 | -9/Mines | Entered Exiles 6580 | -9/Exiles | Accompanied by 2 allies 6610 | -9/Exiles | Led the pair of lost Derelicts to a safe place 6616 | -9/Exiles | Met 8R-AWN 6642 | -9/Exiles | Met EX-HEX 6724 | -9/Exiles | Met EX-DEC 6777 | -9/Exiles | Learned location of Zion (-7) 6832 | -9/Exiles | Discovered new exit (range 14) 6852 | -9/Exiles | Entered Mines 6992 | -8/Mines | Discovered new exit (range 9) 8115 | -8/Mines | Discovered new exit (range 6) 8228 | -8/Mines | Entered Materials 8228 | -8/Materials | Evolved 2 slots: Propulsion x1, Utility x1 8230 | -8/Materials | Loaded intel: 1 garrison access location 8458 | -8/Materials | Lost 3 parts (1p2u) 11558 | -8/Materials | Repaired Arm. Wheel 11573 | -8/Materials | Discovered new exit (range 4) 11696 | -8/Materials | Discovered new exit (range 71) 12061 | -8/Materials | Build established: Scavenger-Mutant 13437 | -8/Materials | Identified exit to Factory 13910 | -8/Materials | Core integrity fell below 50% 14102 | -8/Materials | Discovered exit to Factory (range 11) 14251 | -8/Materials | Entered Factory 14251 | -7/Factory | Evolved 2 slots: Propulsion x1, Utility x1 15142 | -7/Factory | Discovered new exit (range 10) 15147 | -7/Factory | Identified exit to Lower Caves 15244 | -7/Factory | Discovered new exit (range 8) 15265 | -7/Factory | Identified exit to Factory 15576 | -7/Factory | Self-destructed Last Messages --------------- 15525_ Destroyed Gravmag System. 15527_ P-60 Hacker heat short circuits Gravmag System. 15528_ P-60 Hacker destroyed. 15535_ System corrupted: Matter fused (-5). 15537_ Acquired 45 matter. 15551_ ALERT: Rogue bot located, Programmers report to Factory Zone 9M. 15561_ K-01 Serf cleans the Assembly Bed. 15563_ Gravmag System destroyed. 15564_ Dropped Greatsword. 15566_ System Restoration Module purges 1% system corruption (3%). 15566_ System Restoration Module expended. 15568_ Destroyed Com. Wheel. 15568_ S-27 Virus destroyed. 15569_ K-01 Serf cleans the Assembly Bed. 15569_ Mic. Fission Core destroyed. 15570_ S-27 Virus destroyed. 15573_ Gravmag System destroyed. 15574_ K-01 Serf destroyed. 15575_ Imp. Grenade Launcher destroyed. 15576_ U-05 Engineer lays Concrete. Map ----- +----------------------------------------------------+ | ??????????????????????????????????????????# ##### | | ??????????????????????????????????????????# | | ??????????????????????????????????????????# | | ??????????????????????????????????????????# | | ??????????????????????????????????????????# | | ???????????????????????????????" ?????????# | | ???????????????????????????? ##### | | ???????????????????????????? | | ???????????????????????????? | | ???????????????????????????? !! | | ??????????????????????? ??? !! | | ?????????????????????# ??? ^ | | ?????????????????????# ????"" """"""""" | | ?????????????????????# ???""" | | ?????????????????????# "?"""" """"""""" ### | | ?????????????????????# "?"""" # | | ?????????????????????# !!! # | | ?????????????????????# """""" ^! # | | ?????????????????????# """""" !!^ # | | ?????????????????????# """""" ! # " | | ?????????????????????#r """""" """"""""" # " | | ?????????????????????#u # " | | ?????????????????????# k + " | | ?????????????????????#k u#############+##### " | | ??????????############ #?????????? ??# " | | ????????? @ ##??????? # " | | ????????? =u / T#????? # " | | ????????? %* #???# # " | | ????????? ##???# # | | ????????? #????# # | | ?????????? s #????# # | | ?????????? % #????# #! | | ???????????## ##########????# ### | | ????????????#### #??????????????# #?? | | ?????????????? ???????????????# #?? | | ?????????????? ????????????????# #?? | | ?????????????? ??????????????????#############?? | | ?????????????????????????????????????????????????? | | ?????????????????????????????????????????????????? | | ?????????????????????????????????????????????????? | | ?????????????????????????????????????????????????? | | ?????????????????????????????????????????????????? | | ?????????????????????????????????????????????????? | | ?????????????????????????????????????????????????? | | ?????????????????????????????????????????????????? | | ?????????????????????????????????????????????????? | | ?????????????????????????????????????????????????? | | ?????????????????????????????????????????????????? | | ?????????????????????????????????????????????????? | | ?????????????????????????????????????????????????? | +----------------------------------------------------+ Best States ------------- Heat Dissipation 34 Energy Generation 15 Energy Capacity 280 Matter Stores 351 Matter Capacity 400 Sight Range 16 Robot Scan Range 15 Terrain Scan Density 210 ECM Strength 2 Armor Coverage 600 Resistance: KI 30 Core Shielding 20 Propulsion Shielding 66 Utility Shielding 66 Evasion (%) 54 Melee Accuracy 5 Target Analysis 5 Armor Integrity Analysis 30 Recoil Reduction 4 Offensive Hacking 10 Item Schematics ----------------- Lrg. Storage Unit | -9/Materials | Scanalyzed Hvy. Assault Rifle | -9/Materials | Scanalyzed Cmb. Airjet | -8/Materials | Scanalyzed Hacking Suite | -8/Materials | Scanalyzed Robot Schematics ------------------ None Fabricated ------------ Nothing Alien Tech Used ----------------- None Achievements -------------- None Challenges ------------ None Game ------ Seed ConcussiveGlidesysModule Manual? 0 Play Time 01:20:38 Cumulative 56.2 hours Start 2023.07.12 @ 21:36:06 End 2023.07.13 @ 21:01:46 Sessions 3 Manual Loads 0 Difficulty Rogue Special Mode None Game No. 51 Rogue 51 Adventurer 0 Explorer 0 Win Type - Total 1 Types 0/0/1/0/0/0/0/0/0 Lore% 34 Gallery% 37 Achievement% 52 Wizard Run 0 Options --------- ASCII 1 Keyboard 1 Movement Arrows Keybinds 0 Fullscreen 2 Font 24/Proggy Map View 76x50 Tactical HUD 1 Map Filters NONE Filters NONE Steam 1 RUN: dca82df7-fe4a-4a25-8f25-7d8eb856aca1